[Event "*** Titled Tuesday 3|2 Blitz"]
[Site "Chess.com"]
[Date "2016.07.05"]
[Round "6"]
[White "cool64chess"]
[Black "saraswathii"]
[Result "0-1"]
[WhiteElo "2194"]
[BlackElo "2036"]
[TimeControl "180+2"]
[EndTime "12:14:45 PDT"]
[Termination "saraswathii won by resignation"]

1. d4 {[%clk 0:03:01.9]} 1... Nc6 {[%clk 0:03:00.1]} 2. Nf3 {[%clk 0:03:00.6]}
2... d5 {[%clk 0:03:00.7]} 3. h3 {[%clk 0:02:59.2]} 3... Bf5 {[%clk 0:02:56.5]}
4. Bf4 {[%clk 0:02:57.8]} 4... Qd7 {[%clk 0:02:46.2]} 5. e3 {[%clk 0:02:56.5]}
5... f6 {[%clk 0:02:45.8]} 6. Bd3 {[%clk 0:02:52.1]} 6... O-O-O {[%clk
0:02:42.7]} 7. Bxf5 {[%clk 0:02:44.3]} 7... Qxf5 {[%clk 0:02:42.8]} 8. Qd3
{[%clk 0:02:43.8]} 8... Qd7 {[%clk 0:02:36.4]} 9. Bh2 {[%clk 0:02:39.3]} 9... e6
{[%clk 0:02:30.2]} 10. Nc3 {[%clk 0:02:38.7]} 10... Bd6 {[%clk 0:02:27.1]} 11.
O-O-O {[%clk 0:02:30]} 11... Nge7 {[%clk 0:02:25.8]} 12. e4 {[%clk 0:02:28.5]}
12... Bxh2 {[%clk 0:02:19.7]} 13. Rxh2 {[%clk 0:02:13.1]} 13... dxe4 {[%clk
0:02:20.3]} 14. Nxe4 {[%clk 0:02:12.8]} 14... Nf5 {[%clk 0:02:17.5]} 15. Nc5
{[%clk 0:02:07.9]} 15... Qd5 {[%clk 0:02:10.6]} 16. Qb5 {[%clk 0:01:57.8]} 16...
Nd6 {[%clk 0:01:11.1]} 17. Qe2 {[%clk 0:01:40.3]} 17... Rhe8 {[%clk 0:01:03.9]}
18. Nb3 {[%clk 0:01:29.4]} 18... Nf5 {[%clk 0:00:53.7]} 19. g4 {[%clk
0:01:23.4]} 19... Nd6 {[%clk 0:00:39.8]} 20. Rhh1 {[%clk 0:01:17]} 20... h5
{[%clk 0:00:36]} 21. Rhe1 {[%clk 0:01:15]} 21... hxg4 {[%clk 0:00:33]} 22. hxg4
{[%clk 0:01:15.5]} 22... Nc4 {[%clk 0:00:34]} 23. Rd3 {[%clk 0:01:02.8]} 23...
Nb4 {[%clk 0:00:32.2]} 24. Rdd1 {[%clk 0:00:47.5]} 24... Nxa2+ {[%clk
0:00:32.6]} 25. Kb1 {[%clk 0:00:48.8]} 25... Nb4 {[%clk 0:00:32]} 26. Nc5 {[%clk
0:00:32.1]} 26... e5 {[%clk 0:00:27.3]} 27. b3 {[%clk 0:00:20.2]} 27... Na3+
{[%clk 0:00:27]} 28. Kb2 {[%clk 0:00:20.7]} 28... Naxc2 {[%clk 0:00:25.6]} 29.
Qb5 {[%clk 0:00:13.1]} 29... Nxe1 {[%clk 0:00:17]} 30. Nxe1 {[%clk 0:00:12]}
30... Na6 {[%clk 0:00:13.3]} 31. Rc1 {[%clk 0:00:03.1]} 31... Qxd4+ {[%clk
0:00:10]} 32. Kb1 {[%clk 0:00:03.7]} 32... Nxc5 {[%clk 0:00:10.9]} 0-1

[Event "*** Titled Tuesday 3|2 Blitz"]
[Site "Chess.com"]
[Date "2016.07.05"]
[Round "6"]
[White "ZapataCharlesS"]
[Black "Matibar"]
[Result "1/2-1/2"]
[WhiteElo "2465"]
[BlackElo "2580"]
[TimeControl "180+2"]
[EndTime "12:14:46 PDT"]
[Termination "Game drawn by agreement"]

1. e4 {[%clk 0:03:01.9]} 1... e6 {[%clk 0:02:57.1]} 2. d4 {[%clk 0:03:01.1]}
2... d5 {[%clk 0:02:58.4]} 3. exd5 {[%clk 0:03:03]} 3... exd5 {[%clk 0:02:59.2]}
4. Nf3 {[%clk 0:03:01.5]} 4... Bd6 {[%clk 0:02:57.1]} 5. Bd3 {[%clk 0:03:02.9]}
5... Ne7 {[%clk 0:02:57.7]} 6. O-O {[%clk 0:03:01.1]} 6... O-O {[%clk
0:02:58.7]} 7. Bg5 {[%clk 0:02:59.2]} 7... f6 {[%clk 0:02:59.1]} 8. Bh4 {[%clk
0:02:56.3]} 8... Nf5 {[%clk 0:02:59.6]} 9. Bg3 {[%clk 0:02:49.8]} 9... Nxg3
{[%clk 0:02:59.8]} 10. hxg3 {[%clk 0:02:51.7]} 10... Bg4 {[%clk 0:02:56.7]} 11.
Nbd2 {[%clk 0:02:48.9]} 11... c6 {[%clk 0:02:52.1]} 12. c3 {[%clk 0:02:46.5]}
12... Qe8 {[%clk 0:02:37.1]} 13. Qb3 {[%clk 0:02:39.2]} 13... Qf7 {[%clk
0:02:34.9]} 14. Rae1 {[%clk 0:02:40.8]} 14... b5 {[%clk 0:02:27.9]} 15. a4
{[%clk 0:02:40.4]} 15... a6 {[%clk 0:02:28.2]} 16. Nh2 {[%clk 0:02:35.5]} 16...
Bc8 {[%clk 0:01:59.7]} 17. Qc2 {[%clk 0:02:31.1]} 17... g6 {[%clk 0:01:59.5]}
18. f4 {[%clk 0:02:26.4]} 18... Ra7 {[%clk 0:01:54.8]} 19. a5 {[%clk 0:02:19.7]}
19... Re7 {[%clk 0:01:53]} 20. b4 {[%clk 0:02:20]} 20... Rfe8 {[%clk 0:01:53.8]}
21. Rxe7 {[%clk 0:02:15.4]} 21... Rxe7 {[%clk 0:01:51.8]} 22. Nhf3 {[%clk
0:02:08.8]} 22... Bg4 {[%clk 0:01:50.4]} 23. Re1 {[%clk 0:02:03.9]} 23... Rxe1+
{[%clk 0:01:49.4]} 24. Nxe1 {[%clk 0:02:05.8]} 24... Nd7 {[%clk 0:01:50.3]} 25.
Ndf3 {[%clk 0:02:03]} 25... Nf8 {[%clk 0:01:48.1]} 26. Nh2 {[%clk 0:02:02.9]}
26... Bc8 {[%clk 0:01:47.3]} 27. Qe2 {[%clk 0:02:02.8]} 27... Kg7 {[%clk
0:01:48.1]} 28. Nc2 {[%clk 0:01:58.9]} 28... h5 {[%clk 0:01:44.4]} 29. Nf3
{[%clk 0:01:56.3]} 29... Qe7 {[%clk 0:01:37.7]} 30. Qxe7+ {[%clk 0:01:56.3]}
30... Bxe7 {[%clk 0:01:39.6]} 31. Ne3 {[%clk 0:01:57.5]} 31... Bd6 {[%clk
0:01:40.3]} 32. Kf2 {[%clk 0:01:51.2]} 32... Kh6 {[%clk 0:01:40]} 33. Ng1 {[%clk
0:01:43.9]} 33... h4 {[%clk 0:01:30.5]} 34. Ne2 {[%clk 0:01:32.2]} 34... hxg3+
{[%clk 0:01:30.9]} 35. Kxg3 {[%clk 0:01:33.1]} 35... Kg7 {[%clk 0:01:17.7]} 36.
Kf3 {[%clk 0:01:24.3]} 36... Kf7 {[%clk 0:01:18.2]} 37. g4 {[%clk 0:01:25.2]}
37... Bc7 {[%clk 0:01:19.3]} 38. Ng3 {[%clk 0:01:19.9]} 38... Nd7 {[%clk
0:01:17.6]} 39. Ne2 {[%clk 0:01:11]} 39... Nf8 {[%clk 0:01:17.2]} 40. Ng3 {[%clk
0:01:12]} 40... Bd7 {[%clk 0:01:18.4]} 41. f5 {[%clk 0:01:07.6]} 41... g5 {[%clk
0:01:12.7]} 42. Nh5 {[%clk 0:00:57.8]} 42... Be8 {[%clk 0:01:11.6]} 43. Be2
{[%clk 0:00:55.8]} 43... Nh7 {[%clk 0:01:12]} 44. Bf1 {[%clk 0:00:53.9]} 44...
Kf8 {[%clk 0:01:09.9]} 45. Ng3 {[%clk 0:00:53.1]} 45... Bxg3 {[%clk 0:01:08.2]}
46. Kxg3 {[%clk 0:00:53.8]} 46... Ke7 {[%clk 0:01:09.1]} 47. Bd3 {[%clk
0:00:51.5]} 47... Kd6 {[%clk 0:01:10.2]} 48. Kf3 {[%clk 0:00:52.9]} 48... Bd7
{[%clk 0:01:11.4]} 49. Nf1 {[%clk 0:00:53.3]} 49... Bc8 {[%clk 0:01:10.7]} 50.
Ng3 {[%clk 0:00:54.1]} 50... Ke7 {[%clk 0:01:10.7]} 51. Nh5 {[%clk 0:00:54.9]}
51... Kf7 {[%clk 0:01:11.6]} 52. Ng3 {[%clk 0:00:56]} 52... Nf8 {[%clk
0:01:11.7]} 53. Ne2 {[%clk 0:00:57.7]} 53... Ke7 {[%clk 0:01:13]} 54. Nc1 {[%clk
0:00:59.2]} 54... Kd6 {[%clk 0:01:13.9]} 55. Nb3 {[%clk 0:01:00.9]} 55... Nh7
{[%clk 0:01:11.3]} 56. Nc5 {[%clk 0:01:01.7]} 56... Nf8 {[%clk 0:01:12.4]} 57.
Be2 {[%clk 0:01:01.9]} 57... Nh7 {[%clk 0:01:13.3]} 58. Bd3 {[%clk 0:01:03]}
58... Nf8 {[%clk 0:01:14.3]} 59. Kg3 {[%clk 0:01:04.4]} 59... Nh7 {[%clk
0:01:15.3]} 1/2-1/2

[Event "*** Titled Tuesday 3|2 Blitz"]
[Site "Chess.com"]
[Date "2016.07.05"]
[Round "6"]
[White "Ksenia_Legenko"]
[Black "Masterbeaterr"]
[Result "1-0"]
[WhiteElo "2062"]
[BlackElo "2263"]
[TimeControl "180+2"]
[EndTime "12:14:56 PDT"]
[Termination "Ksenia_Legenko won by resignation"]

1. d4 {[%clk 0:03:01.9]} 1... d5 {[%clk 0:03:00.6]} 2. c4 {[%clk 0:03:01.9]}
2... dxc4 {[%clk 0:03:02.5]} 3. Nf3 {[%clk 0:03:02.2]} 3... Nf6 {[%clk 0:03:02]}
4. g3 {[%clk 0:03:02.9]} 4... g6 {[%clk 0:02:53.3]} 5. Bg2 {[%clk 0:03:03.3]}
5... c6 {[%clk 0:02:54.9]} 6. O-O {[%clk 0:03:02.9]} 6... Bg7 {[%clk 0:02:55.3]}
7. Nc3 {[%clk 0:03:01.2]} 7... O-O {[%clk 0:02:54.7]} 8. Bg5 {[%clk 0:03:01.4]}
8... Be6 {[%clk 0:02:53.8]} 9. e3 {[%clk 0:02:59.7]} 9... Nbd7 {[%clk
0:02:53.3]} 10. a4 {[%clk 0:02:57.8]} 10... a5 {[%clk 0:02:51.4]} 11. Nd2 {[%clk
0:02:57.9]} 11... Nb6 {[%clk 0:02:48.3]} 12. Qe2 {[%clk 0:02:52.4]} 12... Nfd5
{[%clk 0:02:38.7]} 13. Rfc1 {[%clk 0:02:40.3]} 13... Nb4 {[%clk 0:02:37]} 14.
Nce4 {[%clk 0:02:25.2]} 14... Nd3 {[%clk 0:02:32]} 15. Rc2 {[%clk 0:02:26.3]}
15... f5 {[%clk 0:02:24.9]} 16. Nc5 {[%clk 0:02:22.4]} 16... Nxc5 {[%clk
0:02:25.2]} 17. dxc5 {[%clk 0:02:23.1]} 17... Nd5 {[%clk 0:02:19.5]} 18. Nxc4
{[%clk 0:02:13.7]} 18... Nb4 {[%clk 0:02:18.8]} 19. Rd2 {[%clk 0:02:01.8]} 19...
Qe8 {[%clk 0:02:19.6]} 20. Rad1 {[%clk 0:01:56.1]} 20... Qf7 {[%clk 0:02:18.8]}
21. Nb6 {[%clk 0:01:48.2]} 21... Rae8 {[%clk 0:02:12.7]} 22. Nd7 {[%clk
0:01:38.2]} 22... Bxd7 {[%clk 0:02:13.3]} 23. Rxd7 {[%clk 0:01:39.2]} 23... Qb3
{[%clk 0:01:51.5]} 24. Bxe7 {[%clk 0:01:30.6]} 24... Rf7 {[%clk 0:01:47.8]} 25.
Bg5 {[%clk 0:01:26.4]} 25... Rxd7 {[%clk 0:01:18.3]} 26. Rxd7 {[%clk 0:01:26.5]}
26... Qxa4 {[%clk 0:01:18]} 27. Rxb7 {[%clk 0:01:26.4]} 27... Qa1+ {[%clk
0:01:19]} 28. Bf1 {[%clk 0:01:17.9]} 28... Qxb2 {[%clk 0:01:18]} 29. Qc4+ {[%clk
0:01:18.5]} 29... Kh8 {[%clk 0:01:18.7]} 30. Qf7 {[%clk 0:01:13.8]} 30... Rg8
{[%clk 0:01:19.3]} 31. Bc4 {[%clk 0:00:38.1]} 31... Rf8 {[%clk 0:01:10.5]} 32.
Qd7 {[%clk 0:00:21.4]} 32... Qc1+ {[%clk 0:01:09.2]} 33. Bf1 {[%clk 0:00:21.1]}
33... Qc3 {[%clk 0:01:05.4]} 34. Bh6 {[%clk 0:00:18.2]} 34... Rg8 {[%clk
0:00:59.6]} 35. Bc4 {[%clk 0:00:11.4]} 35... Nd5 {[%clk 0:00:59.8]} 36. Bxd5
{[%clk 0:00:12.2]} 36... cxd5 {[%clk 0:01:00.2]} 37. Bxg7+ {[%clk 0:00:12.7]}
37... Rxg7 {[%clk 0:00:56]} 38. Qxg7+ {[%clk 0:00:07.4]} 38... Qxg7 {[%clk
0:00:57.9]} 39. Rxg7 {[%clk 0:00:09]} 39... Kxg7 {[%clk 0:00:59.8]} 40. c6
{[%clk 0:00:10.6]} 40... a4 {[%clk 0:01:01.7]} 41. c7 {[%clk 0:00:12.2]} 41...
a3 {[%clk 0:01:03.6]} 42. c8=Q {[%clk 0:00:13.4]} 42... a2 {[%clk 0:01:05.5]}
43. Qa8 {[%clk 0:00:14.2]} 1-0

[Event "*** Titled Tuesday 3|2 Blitz"]
[Site "Chess.com"]
[Date "2016.07.05"]
[Round "6"]
[White "ilya261991"]
[Black "platy3"]
[Result "0-1"]
[WhiteElo "2451"]
[BlackElo "2683"]
[TimeControl "180+2"]
[EndTime "12:15:02 PDT"]
[Termination "platy3 won on time"]

1. d4 {[%clk 0:03:01.9]} 1... Nf6 {[%clk 0:02:58.3]} 2. c4 {[%clk 0:03:02.5]}
2... g6 {[%clk 0:02:59.4]} 3. f3 {[%clk 0:03:03]} 3... Bg7 {[%clk 0:03:01.1]} 4.
e4 {[%clk 0:03:04.5]} 4... d6 {[%clk 0:03:02.9]} 5. Nc3 {[%clk 0:03:05.5]} 5...
O-O {[%clk 0:03:04.6]} 6. Nge2 {[%clk 0:03:06]} 6... c5 {[%clk 0:03:05.2]} 7. d5
{[%clk 0:03:06.4]} 7... e6 {[%clk 0:03:06.4]} 8. Ng3 {[%clk 0:03:06.9]} 8...
exd5 {[%clk 0:03:07.5]} 9. cxd5 {[%clk 0:03:07.6]} 9... a6 {[%clk 0:03:08.5]}
10. a4 {[%clk 0:03:08.1]} 10... Nbd7 {[%clk 0:03:06.6]} 11. Be2 {[%clk
0:03:08.9]} 11... Ne5 {[%clk 0:03:07.9]} 12. O-O {[%clk 0:03:05.3]} 12... h5
{[%clk 0:03:03.9]} 13. h3 {[%clk 0:02:59.3]} 13... Rb8 {[%clk 0:02:52]} 14. f4
{[%clk 0:02:34.6]} 14... Ned7 {[%clk 0:02:52.6]} 15. Re1 {[%clk 0:02:32.3]}
15... Re8 {[%clk 0:02:53.1]} 16. a5 {[%clk 0:02:27]} 16... h4 {[%clk 0:02:52.8]}
17. Nf1 {[%clk 0:02:24.5]} 17... Nxe4 {[%clk 0:02:52.6]} 18. Nxe4 {[%clk
0:02:23.1]} 18... Rxe4 {[%clk 0:02:54.5]} 19. Bd3 {[%clk 0:02:13.6]} 19... Rxe1
{[%clk 0:02:33.2]} 20. Qxe1 {[%clk 0:02:15.5]} 20... b5 {[%clk 0:02:25.8]} 21.
axb6 {[%clk 0:02:13.8]} 21... Nxb6 {[%clk 0:02:25.5]} 22. Ne3 {[%clk 0:01:54.7]}
22... f5 {[%clk 0:02:26]} 23. Kh1 {[%clk 0:01:39.6]} 23... Qe7 {[%clk
0:02:26.5]} 24. Qd1 {[%clk 0:01:21.3]} 24... Bd4 {[%clk 0:02:13.7]} 25. Nc2
{[%clk 0:01:19.8]} 25... Bf6 {[%clk 0:02:14.6]} 26. Bxa6 {[%clk 0:01:19.8]}
26... Bxa6 {[%clk 0:02:00.4]} 27. Rxa6 {[%clk 0:01:21.7]} 27... Nc4 {[%clk
0:02:01.3]} 28. Qe1 {[%clk 0:01:01.6]} 28... Qxe1+ {[%clk 0:01:57.5]} 29. Nxe1
{[%clk 0:01:03.5]} 29... Bxb2 {[%clk 0:01:59.1]} 30. Bxb2 {[%clk 0:01:02.9]}
30... Rxb2 {[%clk 0:02:01]} 31. Nf3 {[%clk 0:01:03.2]} 31... Rb6 {[%clk
0:01:33.1]} 32. Ra7 {[%clk 0:01:01.9]} 32... Ne3 {[%clk 0:01:26.3]} 33. Nxh4
{[%clk 0:01:02.4]} 33... Nxd5 {[%clk 0:01:27.7]} 34. Nxg6 {[%clk 0:01:00.8]}
34... c4 {[%clk 0:01:29.3]} 35. Ra8+ {[%clk 0:00:26.1]} 35... Kf7 {[%clk
0:01:26.9]} 36. Nh4 {[%clk 0:00:23.5]} 36... Ne3 {[%clk 0:01:19.2]} 37. Rc8
{[%clk 0:00:20.6]} 37... d5 {[%clk 0:01:20]} 38. Nf3 {[%clk 0:00:19.1]} 38...
Rb2 {[%clk 0:01:17.5]} 39. g4 {[%clk 0:00:17.9]} 39... fxg4 {[%clk 0:01:16.3]}
40. Ne5+ {[%clk 0:00:19.1]} 40... Ke7 {[%clk 0:01:11.9]} 41. hxg4 {[%clk
0:00:21]} 41... Rf2 {[%clk 0:01:09.9]} 42. f5 {[%clk 0:00:19.6]} 42... Kd6
{[%clk 0:01:10.9]} 43. Nf7+ {[%clk 0:00:19.7]} 43... Ke7 {[%clk 0:01:11.7]} 44.
Ne5 {[%clk 0:00:20.6]} 44... Kf6 {[%clk 0:01:10.5]} 45. Nd7+ {[%clk 0:00:17.4]}
45... Kg5 {[%clk 0:01:12]} 46. f6 {[%clk 0:00:18.1]} 46... Kh4 {[%clk
0:01:11.8]} 47. Re8 {[%clk 0:00:15]} 47... d4 {[%clk 0:01:11.4]} 48. Re4 {[%clk
0:00:11.2]} 48... Kg3 {[%clk 0:01:11.1]} 49. Rxe3+ {[%clk 0:00:06.1]} 49... dxe3
{[%clk 0:01:12]} 50. Kg1 {[%clk 0:00:07.5]} 50... e2 {[%clk 0:01:13.3]} 0-1

[Event "*** Titled Tuesday 3|2 Blitz"]
[Site "Chess.com"]
[Date "2016.07.05"]
[Round "6"]
[White "SavelijTartakover"]
[Black "wnstop"]
[Result "0-1"]
[WhiteElo "2489"]
[BlackElo "2383"]
[TimeControl "180+2"]
[EndTime "12:15:14 PDT"]
[Termination "wnstop won by resignation"]

1. d4 {[%clk 0:03:01.9]} 1... Nf6 {[%clk 0:02:58.9]} 2. c4 {[%clk 0:03:02.2]}
2... d6 {[%clk 0:03:00.1]} 3. Nf3 {[%clk 0:03:02.2]} 3... g6 {[%clk 0:02:56.3]}
4. Nc3 {[%clk 0:03:02.5]} 4... Bg7 {[%clk 0:02:57.8]} 5. e4 {[%clk 0:03:02.9]}
5... O-O {[%clk 0:02:59.4]} 6. Be2 {[%clk 0:03:03.5]} 6... e5 {[%clk 0:03:00.5]}
7. O-O {[%clk 0:03:03.8]} 7... Na6 {[%clk 0:03:01.4]} 8. d5 {[%clk 0:03:03.1]}
8... Nc5 {[%clk 0:02:56.8]} 9. Qc2 {[%clk 0:03:03.7]} 9... a5 {[%clk 0:02:56.4]}
10. Bg5 {[%clk 0:03:03.2]} 10... h6 {[%clk 0:02:56.2]} 11. Be3 {[%clk 0:03:04]}
11... b6 {[%clk 0:02:53.4]} 12. Nd2 {[%clk 0:02:59.9]} 12... Ng4 {[%clk
0:02:54.5]} 13. Bxg4 {[%clk 0:03:00.1]} 13... Bxg4 {[%clk 0:02:56.4]} 14. b3
{[%clk 0:02:58.2]} 14... Bd7 {[%clk 0:02:52.8]} 15. a3 {[%clk 0:02:58]} 15... f5
{[%clk 0:02:39.7]} 16. f3 {[%clk 0:02:58.8]} 16... Na6 {[%clk 0:01:59.8]} 17.
Rab1 {[%clk 0:02:51.3]} 17... f4 {[%clk 0:01:49.9]} 18. Bf2 {[%clk 0:02:50.2]}
18... g5 {[%clk 0:01:49.3]} 19. b4 {[%clk 0:02:46.7]} 19... axb4 {[%clk
0:01:49.7]} 20. axb4 {[%clk 0:02:47.5]} 20... g4 {[%clk 0:01:50.6]} 21. fxg4
{[%clk 0:02:47.5]} 21... Bxg4 {[%clk 0:01:50.8]} 22. Nf3 {[%clk 0:02:48.2]}
22... Bf6 {[%clk 0:01:43.7]} 23. Kh1 {[%clk 0:02:48.3]} 23... Kh7 {[%clk
0:01:43.2]} 24. Qd3 {[%clk 0:02:44.4]} 24... Rg8 {[%clk 0:01:42.5]} 25. Rg1
{[%clk 0:02:44.4]} 25... Qe8 {[%clk 0:01:28.5]} 26. c5 {[%clk 0:02:37]} 26...
bxc5 {[%clk 0:01:19.2]} 27. bxc5 {[%clk 0:02:37.9]} 27... Nxc5 {[%clk
0:01:16.7]} 28. Bxc5 {[%clk 0:02:38.8]} 28... dxc5 {[%clk 0:01:18.6]} 29. Rb7
{[%clk 0:02:39.8]} 29... Qc8 {[%clk 0:01:14.7]} 30. Rb5 {[%clk 0:02:35.2]} 30...
Qa6 {[%clk 0:00:50.8]} 31. Qf1 {[%clk 0:02:20.3]} 31... Qa3 {[%clk 0:00:43.4]}
32. Nb1 {[%clk 0:02:12]} 32... Qe3 {[%clk 0:00:44.2]} 33. Nbd2 {[%clk
0:02:05.1]} 33... Bxf3 {[%clk 0:00:30.3]} 34. Nxf3 {[%clk 0:02:05.7]} 34... Ra2
{[%clk 0:00:21.3]} 35. Rb7 {[%clk 0:02:01.2]} 35... Rg7 {[%clk 0:00:22]} 36. Qe1
{[%clk 0:01:40.4]} 36... Re2 {[%clk 0:00:22.6]} 37. Qc1 {[%clk 0:01:28.3]} 37...
Qxe4 {[%clk 0:00:19.8]} 38. Qb1 {[%clk 0:01:20.6]} 38... Qxb1 {[%clk 0:00:17.8]}
39. Rgxb1 {[%clk 0:01:20.7]} 39... e4 {[%clk 0:00:11.7]} 40. Ng1 {[%clk
0:01:10.2]} 40... Rexg2 {[%clk 0:00:12.6]} 41. Nh3 {[%clk 0:01:03.1]} 41... Be5
{[%clk 0:00:11.6]} 42. Rg1 {[%clk 0:00:51.2]} 42... f3 {[%clk 0:00:09.8]} 0-1

[Event "*** Titled Tuesday 3|2 Blitz"]
[Site "Chess.com"]
[Date "2016.07.05"]
[Round "6"]
[White "Alexander_Donchenko"]
[Black "TyIerDurden"]
[Result "1-0"]
[WhiteElo "2597"]
[BlackElo "2440"]
[TimeControl "180+2"]
[EndTime "12:15:26 PDT"]
[Termination "Alexander_Donchenko won on time"]

1. d4 {[%clk 0:03:01.9]} 1... d5 {[%clk 0:02:59.5]} 2. c4 {[%clk 0:03:03.1]}
2... c6 {[%clk 0:03:01.4]} 3. Nf3 {[%clk 0:03:04.4]} 3... Nf6 {[%clk 0:03:03.3]}
4. Qc2 {[%clk 0:03:05.8]} 4... e6 {[%clk 0:03:04.1]} 5. Nbd2 {[%clk 0:03:06.5]}
5... Be7 {[%clk 0:03:05.2]} 6. g3 {[%clk 0:03:08]} 6... Nbd7 {[%clk 0:03:05.8]}
7. Bg2 {[%clk 0:03:09.5]} 7... O-O {[%clk 0:03:06.3]} 8. O-O {[%clk 0:03:11.2]}
8... b5 {[%clk 0:03:04.5]} 9. b3 {[%clk 0:03:09.9]} 9... bxc4 {[%clk 0:03:03.5]}
10. bxc4 {[%clk 0:03:10.9]} 10... Ba6 {[%clk 0:03:04.9]} 11. Qa4 {[%clk
0:02:58.2]} 11... Bxc4 {[%clk 0:02:51.8]} 12. Nxc4 {[%clk 0:02:58.7]} 12... dxc4
{[%clk 0:02:50.3]} 13. Qxc4 {[%clk 0:02:57]} 13... Rc8 {[%clk 0:02:52.2]} 14.
Bf4 {[%clk 0:02:51.5]} 14... c5 {[%clk 0:02:50.6]} 15. Rfd1 {[%clk 0:02:49.4]}
15... cxd4 {[%clk 0:02:48]} 16. Qxd4 {[%clk 0:02:47.8]} 16... Qa5 {[%clk
0:02:48.5]} 17. Bd2 {[%clk 0:02:25.5]} 17... Qb6 {[%clk 0:02:45.7]} 18. Rab1
{[%clk 0:02:19]} 18... Qxd4 {[%clk 0:02:41.2]} 19. Nxd4 {[%clk 0:02:20.9]} 19...
Bc5 {[%clk 0:02:42]} 20. Nb3 {[%clk 0:01:56.7]} 20... Bb6 {[%clk 0:02:36.8]} 21.
a4 {[%clk 0:01:57.7]} 21... Nc5 {[%clk 0:02:37.6]} 22. a5 {[%clk 0:01:50.7]}
22... Nxb3 {[%clk 0:02:31.6]} 23. Rxb3 {[%clk 0:01:49.2]} 23... Bc5 {[%clk
0:02:32.5]} 24. Bf4 {[%clk 0:01:39.7]} 24... Rfd8 {[%clk 0:02:29.4]} 25. Rxd8+
{[%clk 0:01:38]} 25... Rxd8 {[%clk 0:02:31.3]} 26. Bf3 {[%clk 0:01:37.8]} 26...
Nd5 {[%clk 0:02:28.7]} 27. Bd2 {[%clk 0:01:14.4]} 27... Nf6 {[%clk 0:02:21.8]}
28. Bc3 {[%clk 0:01:09.9]} 28... Ne8 {[%clk 0:02:19.1]} 29. Rb7 {[%clk
0:01:07.4]} 29... Nd6 {[%clk 0:02:17.2]} 30. Rc7 {[%clk 0:01:06.5]} 30... Rc8
{[%clk 0:02:17.8]} 31. Rxc8+ {[%clk 0:01:06.1]} 31... Nxc8 {[%clk 0:02:18]} 32.
e3 {[%clk 0:01:06.6]} 32... Ne7 {[%clk 0:02:15.9]} 33. Kf1 {[%clk 0:01:07.1]}
33... Nd5 {[%clk 0:02:14.8]} 34. Bb2 {[%clk 0:01:00.2]} 34... Kf8 {[%clk
0:02:10.9]} 35. Ke2 {[%clk 0:01:00.5]} 35... Ke7 {[%clk 0:02:11.5]} 36. Bxg7
{[%clk 0:01:00.3]} 36... Bb4 {[%clk 0:02:11.9]} 37. a6 {[%clk 0:00:59.2]} 37...
f6 {[%clk 0:02:12.3]} 38. Bxd5 {[%clk 0:00:53.2]} 38... exd5 {[%clk 0:02:14.2]}
39. Kd3 {[%clk 0:00:53.1]} 39... h5 {[%clk 0:02:11.1]} 40. f3 {[%clk 0:00:47.5]}
40... Bc5 {[%clk 0:02:09.5]} 41. g4 {[%clk 0:00:47.4]} 41... Kf7 {[%clk
0:02:07.5]} 42. Bh6 {[%clk 0:00:48.1]} 42... Kg6 {[%clk 0:02:08.2]} 43. Bf4
{[%clk 0:00:47.6]} 43... Bb6 {[%clk 0:02:09.1]} 44. h3 {[%clk 0:00:47.4]} 44...
f5 {[%clk 0:02:03.5]} 45. Be5 {[%clk 0:00:43.3]} 45... fxg4 {[%clk 0:02:01.9]}
46. fxg4 {[%clk 0:00:45.2]} 46... hxg4 {[%clk 0:02:01]} 47. hxg4 {[%clk
0:00:47.1]} 47... Kf7 {[%clk 0:01:58]} 48. Bd4 {[%clk 0:00:46.9]} 48... Bc7
{[%clk 0:01:59]} 49. Bxa7 {[%clk 0:00:47.6]} 49... Ke6 {[%clk 0:01:59.2]} 50.
Bd4 {[%clk 0:00:48.2]} 50... Bb8 {[%clk 0:01:53]} 51. a7 {[%clk 0:00:49.5]} 1-0

[Event "*** Titled Tuesday 3|2 Blitz"]
[Site "Chess.com"]
[Date "2016.07.05"]
[Round "6"]
[White "twofoxniel"]
[Black "simplerXiao"]
[Result "0-1"]
[WhiteElo "2501"]
[BlackElo "2348"]
[TimeControl "180+2"]
[EndTime "12:15:31 PDT"]
[Termination "simplerXiao won on time"]

1. e4 {[%clk 0:03:01.2]} 1... c5 {[%clk 0:03:00]} 2. c3 {[%clk 0:03:00.2]} 2...
Nf6 {[%clk 0:02:57.3]} 3. e5 {[%clk 0:03:00.9]} 3... Nd5 {[%clk 0:02:58.4]} 4.
d4 {[%clk 0:03:02.1]} 4... cxd4 {[%clk 0:02:58.4]} 5. cxd4 {[%clk 0:03:04]} 5...
d6 {[%clk 0:02:56.2]} 6. Bc4 {[%clk 0:03:04.7]} 6... Nb6 {[%clk 0:02:56.8]} 7.
Bb5+ {[%clk 0:03:05.8]} 7... Bd7 {[%clk 0:02:55.2]} 8. e6 {[%clk 0:03:07]} 8...
fxe6 {[%clk 0:02:55.2]} 9. Bd3 {[%clk 0:03:07.2]} 9... g6 {[%clk 0:02:49.7]} 10.
h4 {[%clk 0:03:07.7]} 10... Nc6 {[%clk 0:02:25.5]} 11. h5 {[%clk 0:03:05.7]}
11... Qc7 {[%clk 0:02:17.2]} 12. hxg6 {[%clk 0:03:06]} 12... h6 {[%clk
0:02:17.1]} 13. Nf3 {[%clk 0:03:04.6]} 13... Bg7 {[%clk 0:02:13.5]} 14. Be3
{[%clk 0:03:04.3]} 14... Nd5 {[%clk 0:02:05.3]} 15. Nc3 {[%clk 0:03:04.9]} 15...
Nxe3 {[%clk 0:01:59.9]} 16. fxe3 {[%clk 0:03:06.8]} 16... Qa5 {[%clk 0:01:57.7]}
17. Qd2 {[%clk 0:02:56.2]} 17... e5 {[%clk 0:01:52.8]} 18. d5 {[%clk 0:02:49]}
18... Nb4 {[%clk 0:01:50.8]} 19. Bc4 {[%clk 0:02:49.8]} 19... Rc8 {[%clk
0:01:41.9]} 20. Bb3 {[%clk 0:02:47.7]} 20... O-O {[%clk 0:01:36.4]} 21. e4
{[%clk 0:02:37.1]} 21... Na6 {[%clk 0:01:27.3]} 22. Rxh6 {[%clk 0:02:35.8]}
22... Rf4 {[%clk 0:01:17.9]} 23. Rh7 {[%clk 0:02:30.1]} 23... Be8 {[%clk
0:01:12.5]} 24. Rh4 {[%clk 0:02:06.2]} 24... Bxg6 {[%clk 0:01:06.4]} 25. Rc1
{[%clk 0:01:43.4]} 25... Nc5 {[%clk 0:01:06.1]} 26. Bc2 {[%clk 0:01:37.3]} 26...
Rcf8 {[%clk 0:01:01.8]} 27. a3 {[%clk 0:01:31.7]} 27... Qb6 {[%clk 0:00:56.8]}
28. b4 {[%clk 0:01:22.2]} 28... Nd7 {[%clk 0:00:57.1]} 29. Rh1 {[%clk
0:01:01.3]} 29... Rxf3 {[%clk 0:00:56.9]} 30. gxf3 {[%clk 0:01:01.7]} 30... Rxf3
{[%clk 0:00:58.6]} 31. Ne2 {[%clk 0:00:52.9]} 31... Qf2+ {[%clk 0:00:56.1]} 32.
Kd1 {[%clk 0:00:54]} 32... Nf6 {[%clk 0:00:50.7]} 33. Qg5 {[%clk 0:00:46.9]}
33... Re3 {[%clk 0:00:41.8]} 34. Re1 {[%clk 0:00:40.3]} 34... Bh5 {[%clk
0:00:42.3]} 35. Kd2 {[%clk 0:00:17.5]} 35... Rxe2+ {[%clk 0:00:38.9]} 36. Rxe2
{[%clk 0:00:18.8]} 36... Qxe2+ {[%clk 0:00:40.2]} 37. Kc3 {[%clk 0:00:20.1]}
37... Qf3+ {[%clk 0:00:25.9]} 38. Kb2 {[%clk 0:00:19.7]} 38... Qf4 {[%clk
0:00:27.2]} 39. Qg1 {[%clk 0:00:14.6]} 39... Nxe4 {[%clk 0:00:25.1]} 40. Rf1
{[%clk 0:00:14.6]} 40... Bf3 {[%clk 0:00:25.7]} 41. Qxa7 {[%clk 0:00:10.5]}
41... Nd2 {[%clk 0:00:24]} 42. Rf2 {[%clk 0:00:10.4]} 42... e4+ {[%clk
0:00:24.5]} 43. Ka2 {[%clk 0:00:08.1]} 43... e3 {[%clk 0:00:24.2]} 44. Qb8+
{[%clk 0:00:05.3]} 44... Kf7 {[%clk 0:00:24.8]} 45. Rh2 {[%clk 0:00:03.2]} 45...
Qc4+ {[%clk 0:00:25.3]} 0-1